[Event "8th Montevideo Open 2025"]
[Site "Montevideo"]
[Date "2025.02.06"]
[Round "6.8"]
[White "Roselli Mailhe, Bernardo"]
[Black "Milat, Marcel"]
[Result "1/2-1/2"]
[Annotator "TA"]
[ECO "D91"]
[WhiteElo "2342"]
[BlackElo "2190"]
[PlyCount "97"]
[EventDate "2025.02.01"]
[EventType "swiss"]
[EventCountry "URU"]
[SourceTitle "playchess.com"]
[Source "ChessBase"]
[SourceQuality "1"]
[TimeControl "5400+30"]

{[%evp 16,97,33,9,30,37,52,53,63,58,51,52,55,54,57,56,60,62,65,51,48,52,44,28,32,42,45,8,7,0,0,6,22,12,27,20,57,46,32,27,50,12,12,4,5,0,0,-4,0,-6,-6,-8,0,-7,0,0,0,0,0,-6,-6,-18,-10,-15,-9,-24,0,0,0,0,0,0,0,0,0,0,0,0,0,0,0,0,0,0]} 1. d4 {[%emt 0:00:02]} Nf6 {[%emt 0:03:42]} 2. c4 {[%emt 0:00:56]} g6 {[%emt 0:00:48]} 3. Nc3 {[%emt 0:00:05]} d5 {[%emt 0:00:15]} 4. Bg5 {[%emt 0:00:09]} Ne4 {[%emt 0:00:37]} 5. Bh4 {[%emt 0:00:07]} Nxc3 {[%emt 0:00:12]} 6. bxc3 {[%emt 0:00:04]} dxc4 {[%emt 0:00:09]} 7. e3 {[%emt 0:00:26]} Be6 {[%emt 0:00:22]} 8. Nf3 {[%emt 0:00:24] 8.Be2 is not played anymore.} Bg7 {[%emt 0:02:06]} 9. Qb1 {[%emt 0:05:04]} c5 {[%emt 0:19:27] D91: Grünfeld: 4 Nf3 Bg7 5 Bg5.} 10. Qxb7 {[%emt 0:04:37]} Bd5 {[%emt 0:01:00]} 11. Qb5+ {[%emt 0:04:33] A sharp opening} Nd7 $1 {[%emt 0:00:07][%cal Bb8d7,Bd7b6,Bb6c4][%mdl 32] White is slightly better.} 12. Bxc4 {[%emt 0:02:21] White has more active pieces.} (12. dxc5 $2 Bxc3+ 13. Nd2 Rb8 $19 (13... Bxa1 $2 14. Bxc4 Rb8 15. Qa4 $19)) 12... Rb8 {[%emt 0:00:38]} 13. Qa4 {[%emt 0:00:07]} Bxc4 {[%emt 0:07:21]} 14. Qxc4 {[%emt 0:00:18]} cxd4 {[%emt 0:00:01]} 15. exd4 {[%emt 0:02:01]} Nb6 {[%emt 0:04:11]} 16. Qd3 $146 {[%emt 0:05:09]} (16. Qb5+ Qd7 17. Rb1 Qxb5 18. Rxb5 Kd7 19. Bg3 Rbc8 20. Kd2 Rc4 21. Kd3 Ra4 22. Ra1 {1-0 Bekturov,T (2297)-Vestby Ellingsen,M (2410) Wch U16 Porto Carras 2018 (6)}) 16... O-O {[%emt 0:00:25]} 17. c4 {[%emt 0:03:39] Prevents Qd5.} Rc8 {[%emt 0:05:49]} 18. Rc1 $1 {[%emt 0:03:23]} ({But not} 18. c5 Rxc5 19. O-O Rc7 $11) 18... Qd5 $1 {[%emt 0:00:14][%cal Rb6c4]} 19. O-O {[%emt 0:02:33]} Nxc4 {[%emt 0:01:19]} 20. Bxe7 {[%emt 0:05:51]} Rfe8 {[%emt 0:00:08]} 21. Bg5 {[%emt 0:06:23]} h6 $132 {[%emt 0:08:00][%mdl 2048] Black is not keeping still} 22. Bd2 {[%emt 0:02:33]} Nxd2 {[%emt 0:02:35]} 23. Qxd2 {[%emt 0:00:05]} Red8 {[%emt 0:04:11]} 24. h3 {[%emt 0:04:13]} Kh7 {[%emt 0:01:58]} 25. Rfd1 {[%emt 0:02:17]} Bf8 {[%emt 0:11:12]} 26. Rxc8 {[%emt 0:12:04]} Rxc8 {[%emt 0:00:01]} 27. Ne5 {[%emt 0:00:20][%cal Bf3e5,Be5g4,Bg4e3][%mdl 32]} Bg7 {[%emt 0:05:45]} 28. Ng4 {[%emt 0:00:35]} Rd8 {[%emt 0:00:44]} 29. Qe2 {[%emt 0:10:43]} Qe6 {[%emt 0:07:32]} (29... Bxd4 30. Nf6+ Bxf6 31. Rxd5 Rxd5 32. g3) 30. Qb2 {[%emt 0:07:02]} Qc4 {[%emt 0:02:52]} 31. Ne3 {[%emt 0:05:55] [#]} Rxd4 {[%emt 0:00:10]} 32. Rxd4 {[%emt 0:00:04]} (32. Qxd4 Qxd4) 32... Qxd4 $11 {[%emt 0:00:10][%mdl 4096] Endgame KQB-KQN} 33. Qb3 {[%emt 0:05:12]} Qd7 {[%emt 0:02:05]} 34. Qc4 {[%emt 0:01:55]} h5 {[%emt 0:00:35]} 35. g4 {[%emt 0:00:16]} hxg4 {[%emt 0:00:15]} 36. hxg4 {[%emt 0:00:06]} Bd4 {[%emt 0:00:06]} 37. Qd3 {[%emt 0:02:44]} Kg7 {[%emt 0:01:29]} 38. Kg2 {[%emt 0:01:03]} Qc6+ {[%emt 0:00:23]} 39. Kg3 {[%emt 0:01:07]} Qc7+ {[%emt 0:02:08]} 40. f4 {[%emt 0:00:37]} (40. Kf3 {feels hotter.} Qc5 41. Qe4 Qd6 42. Nd5) 40... Bxe3 {[%emt 0:01:03]} 41. Qxe3 {[%emt 0:00:05] KQ-KQ. The position is equal.} Qd7 {[%emt 0:00:35]} 42. Qc3+ {[%emt 0:01:02]} Kg8 {[%emt 0:00:39]} 43. a3 {[%emt 0:00:10]} Qd1 {[%emt 0:00:49]} 44. Qc5 {[%emt 0:00:43]} Qd3+ {[%emt 0:00:24]} 45. Kg2 {[%emt 0:00:45]} Qe2+ {[%emt 0:00:40]} 46. Kg3 {[%emt 0:00:08]} Qe1+ {[%emt 0:01:33]} 47. Kg2 {[%emt 0:00:30]} Qe2+ {[%emt 0:00:12]} 48. Kg3 {[%emt 0:00:26]} Qe1+ {[%emt 0:00:10]} 49. Kg2 {[%emt 0:01:43] Weighted Error Value: White=0.07 (flawless) /Black=0.05 (flawless)   Inaccurate:     	White=2     	Black=1      OK:         	White=14    	Black=19     Best:        	White=2     	Black=2      Strong:       	White=1     	Black=2} 1/2-1/2

[Event "8th Montevideo Open 2025"]
[Site "Montevideo"]
[Date "2025.02.06"]
[Round "6.9"]
[White "Carbone, Diego"]
[Black "Izquierdo, Daniel"]
[Result "1-0"]
[Annotator "TA"]
[ECO "E62"]
[WhiteElo "2216"]
[BlackElo "2069"]
[PlyCount "99"]
[EventDate "2025.02.01"]
[EventType "swiss"]
[EventCountry "URU"]
[SourceTitle "playchess.com"]
[Source "ChessBase"]
[SourceQuality "1"]
[TimeControl "5400+30"]

{[%evp 19,99,34,31,40,50,52,48,44,30,31,47,39,39,38,56,53,76,66,71,63,115,70,124,118,117,0,0,-149,-157,-146,-155,-149,-77,-113,-90,-76,-117,-151,-101,-86,-54,-108,-108,-94,0,0,0,0,0,-32,0,0,0,-157,-150,-161,-136,-134,-98,-95,106,102,183,75,86,-175,226,0,0,0,41,29,152,182,580,543,29982,29983,29994,29995,29995,29996]} 1. d4 {[%emt 1:31:00]} Nf6 {[%emt 0:08:56]} 2. c4 {[%emt 0:00:00]} g6 {[%emt 0:00:22]} 3. Nf3 {[%emt 0:00:00]} Bg7 {[%emt 0:00:26]} 4. g3 {[%emt 0:00:00]} O-O {[%emt 0:00:27]} 5. Bg2 {[%emt 0:00:00]} d6 {[%emt 0:01:53]} 6. Nc3 {[%emt 0:00:00]} Nc6 {[%emt 0:00:51]} 7. O-O {[%emt 0:00:00]} Bf5 {[%emt 0:01:29]} 8. d5 {[%emt 0:00:00]} Na5 {[%emt 0:00:17]} 9. Nd2 {[%emt 0:00:00]} c5 {[%emt 0:01:05] 9...c6 is vanishing.} 10. e4 {[%emt 0:00:00]} Bd7 {[%emt 0:01:56]} 11. Qc2 {[%emt 0:00:00] E62: King's Indian: Fianchetto: 6...c6 and Panno Variation (6...Nc6) without ...a6.} e6 {[%emt 0:01:25]} 12. b3 {[%emt 0:00:00]} exd5 {[%emt 0:00:36]} 13. cxd5 {[%emt 0:00:00] White is slightly better.} (13. exd5 Bf5 14. Qd1 Nxd5 15. Nxd5 Bxa1 $15) 13... Re8 {[%emt 0:01:04]} 14. Bb2 {[%emt 0:00:00]} b5 {[%emt 0:00:44]} 15. Nd1 {[%emt 0:00:00]} Rc8 {[%emt 0:07:53]} 16. Rb1 {[%emt 0:00:00]} Qc7 {[%emt 0:15:35]} 17. Ne3 {[%emt 0:00:00]} a6 {[%emt 0:04:34]} 18. h3 {[%emt 0:00:00]} c4 $146 {[%emt 0:07:07]} (18... Qd8 19. Bc3 Bh6 20. Rfe1 Nb7 21. Kh2 a5 22. f4 Nh5 23. Ba1 Nxf4 24. gxf4 Bxf4+ {0-1 Moser,A (2160)-Mensing,A (2028) Prague op 23rd 2025 (8)}) 19. Rfc1 {[%emt 0:00:00][%cal Rb3c4]} Qa7 {[%emt 0:02:22]} (19... Nb7 $14) 20. b4 {[%emt 0:00:00]} c3 {[%emt 0:05:31]} 21. Bxc3 $16 {[%emt 0:00:00]} Ng4 {[%emt 0:00:54]} 22. hxg4 {[%emt 0:00:00]} ({Better is} 22. Qd3 $16 Nxe3 23. Bxg7 (23. bxa5 Nd1 $17) (23. fxe3 Rxc3 24. Rxc3 Bxc3 $11) 23... Kxg7 24. bxa5 (24. fxe3 Nc4 $14) 24... Nxg2 25. Kxg2) 22... Rxc3 $11 {[%emt 0:00:16]} 23. Qd1 {[%emt 0:00:00]} (23. Qxc3 $11 Bxc3 24. Rxc3) 23... Rxe3 $1 $17 {[%emt 0:05:33]} 24. fxe3 {[%emt 0:00:00]} Qxe3+ {[%emt 0:00:13]} 25. Kh2 {[%emt 0:00:00] [#]} Be5 $1 {[%emt 0:01:10] Black has a strong bishop and is better} 26. Nf1 {[%emt 0:00:00]} (26. Nf3 Nc4) 26... Qh6+ {[%emt 0:03:26][%mdl 1024] Black has strong compensation.} 27. Bh3 {[%emt 0:00:00]} Nc4 {[%emt 0:00:36]} 28. Qf3 {[%emt 0:00:00]} Bd4 {[%emt 0:03:07] A strong pair of Bishops.} (28... Na3 $142 29. Rc7 (29. Qxa3 $2 Bxg4 30. Qe3 Qxh3+ 31. Kg1 Bg7 $19) 29... Nxb1 30. Rxd7 Qf8 (30... Rf8 $2 31. Qd1 $19)) 29. Kg2 {[%emt 0:00:00]} Ne5 {[%emt 0:00:40][%csl Oe5] Strong Square Black (e5)} 30. Qd1 {[%emt 0:00:00]} (30. Qe2 $1 $15) 30... Bb6 {[%emt 0:02:12]} 31. Qd2 {[%emt 0:03:52]} Qg7 {[%emt 0:07:40]} (31... Nxg4 $2 32. Qxh6 Nxh6 33. Bxd7 $18) ({Black should play} 31... g5 $17 32. Qe2 Nc4) 32. g5 $11 {[%emt 0:00:02]} Bxh3+ {[%emt 0:05:16]} 33. Kxh3 {[%emt 0:00:01]} f5 {[%emt 0:01:20]} 34. exf5 {[%emt 0:08:46]} Qd7 {[%emt 0:01:30]} 35. Kg2 $1 {[%emt 0:01:27]} Qxf5 {[%emt 0:00:37]} 36. Qf4 {[%emt 0:01:12] Prevents Qe4+} (36. Qe2 $1 $11) 36... Qd3 $17 {[%emt 0:01:27]} 37. Re1 {[%emt 0:01:23] Prevents Qe2+} Rf8 $1 {[%emt 0:01:44]} (37... Qxd5+ 38. Qe4 Qxa2+ 39. Re2 $14) 38. Qe4 {[%emt 0:00:20]} Rf2+ {[%emt 0:03:01]} 39. Kh3 {[%emt 0:00:12] Threatens to win with Qxd3.} Qa3 {[%emt 0:00:52]} (39... Qf3 $1 $17 {Hoping for ...Nf7.} 40. Qxf3 Nxf3 41. Re8+ Kf7) 40. Re2 $1 $16 {[%emt 0:01:09]} Rf8 {[%emt 0:01:43]} (40... Rxe2 $16 41. Qxe2 Nf7) 41. Nh2 {[%emt 0:00:45]} (41. Nd2 $18 {has better winning chances.}) 41... Bf2 {[%emt 0:01:37][%csl Gf2][%cal Ra3g3]} 42. Qg2 {[%emt 0:00:25][%mdl 8192]} (42. Rb3 $1 $16 {[%cal Rb3a3] keeps the pressure on.} Qc1 43. Rc2 Qxg5 44. Kg2) 42... Bb6 $4 {[%emt 0:01:11][%mdl 8192] [#]} (42... Qd3 $19 {and life is good for Black. ( -> ...Qf5+)} 43. Rxf2 Rxf2 (43... Qxb1 44. Qf1 $17) 44. Qxf2 Qxb1) 43. Rxe5 {[%emt 0:00:42]} dxe5 $11 {[%emt 0:00:22]} 44. Ng4 {[%emt 0:00:11] Dodges Qe3} Qd3 {[%emt 0:00:43] Prevents Qe4.} 45. Re1 {[%emt 0:00:01]} Bd4 {[%emt 0:00:42] [#]} (45... Bc7 $11) 46. d6 $1 $36 {[%emt 0:00:21][%mdl 2048] White has strong initiative.} (46. Nxe5 Qf5+ 47. g4 Qxg5 $19) 46... Bc3 $2 {[%emt 0:00:26]} (46... Qf5 47. Qd5+ Kh8) 47. Re3 $18 {[%emt 0:00:08]} (47. Nxe5 $2 Qxd6 48. Nxg6 Qd7+ (48... Bxe1 $2 49. Nxf8 Bxb4 50. Qa8 $19) (48... Qxg6 $2 49. Qd5+ Qf7 50. Re6 $19) (48... hxg6 $2 49. Re4 $19) 49. Kh2 hxg6 $19 (49... Bxe1 $2 50. Nxf8 Qe7 51. a4 $19)) 47... Qd4 {[%emt 0:00:27]} 48. Qb7 {[%emt 0:00:55] White mates.} (48. Rxe5 Qxd6 (48... Bxb4 $2 {is the wrong capture.} 49. Re4 $18) 49. Rc5 Bg7 $14) 48... Bxb4 {[%emt 0:00:39]} 49. Nf6+ {[%emt 0:00:22]} ({Weaker is} 49. Qxa6 Qd1 $14) 49... Rxf6 {[%emt 0:00:23]} 50. gxf6 {[%emt 0:00:01] A wild game.   Weighted Error Value: White=0.38/Black=0.62  Loses game:     	White=1     	---        Missed win:     	White=1     	Black=1      Mistake:       	White=5     	Black=9      Inaccurate:     	White=3     	Black=4      OK:         	White=12    	Black=5      Best:        	White=5     	Black=3      Strong:       	White=3     	Black=2} 1-0

[Event "8th Montevideo Open 2025"]
[Site "Montevideo"]
[Date "2025.02.06"]
[Round "6.10"]
[White "Kulik, Nicolas"]
[Black "Estrada Nieto, Julian"]
[Result "1-0"]
[Annotator "TA"]
[ECO "C92"]
[WhiteElo "1922"]
[BlackElo "2195"]
[PlyCount "151"]
[EventDate "2025.02.01"]
[EventType "swiss"]
[EventCountry "URU"]
[SourceTitle "playchess.com"]
[Source "ChessBase"]
[SourceQuality "1"]
[TimeControl "5400+30"]

{[%evp 35,151,-3,22,16,20,2,59,59,44,59,59,50,54,47,100,87,96,116,68,77,268,264,280,295,277,287,311,462,462,454,469,442,1654,1604,1611,1593,1474,1485,1544,1507,1512,740,632,313,319,333,316,299,307,299,299,299,339,310,310,310,310,310,310,302,389,310,304,296,1602,1389,1680,1587,1897,1743,1611,714,722,589,714,564,557,557,512,479,438,0,352,327,319,318,770,111,108,0,905,905,905,905,840,848,616,616,733,587,3537,2468,4141,4137,1243,1143,1536,1481,29962,29963,4137,4133,29975,11865,29981,29982,29978,29977]} 1. e4 {[%emt 0:00:02]} e5 {[%emt 0:07:46]} 2. Nf3 {[%emt 0:00:02]} Nc6 {[%emt 0:00:03]} 3. Bb5 {[%emt 0:00:03][%cal Bf1b5,Bb5a4,Ba4b3][%mdl 32]} a6 {[%emt 0:00:04]} 4. Ba4 {[%emt 0:00:05]} Nf6 {[%emt 0:00:19]} 5. O-O {[%emt 0:00:09]} Be7 {[%emt 0:00:53]} 6. Re1 {[%emt 0:00:02]} b5 {[%emt 0:00:05]} 7. Bb3 {[%emt 0:00:03]} d6 {[%emt 0:00:12]} 8. c3 {[%emt 0:00:04]} O-O {[%emt 0:00:06]} 9. h3 {[%emt 0:00:01]} Bb7 {[%emt 0:00:31]} 10. d4 {[%emt 0:00:14]} Re8 {[%emt 0:03:56]} 11. Nbd2 {[%emt 0:00:21]} Bf8 {[%emt 0:00:16]} 12. a4 {[%emt 0:00:15]} h6 {[%emt 0:00:19]} 13. Bc2 {[%emt 0:00:06]} exd4 {[%emt 0:00:21]} 14. cxd4 {[%emt 0:00:02]} Nb4 {[%emt 0:00:09]} 15. Bb1 {[%emt 0:00:02]} c5 {[%emt 0:00:09][%cal Bc7c5,Bc5c4][%mdl 32]} 16. d5 {[%emt 0:00:09]} Nd7 {[%emt 0:01:53]} 17. Ra3 {[%emt 0:00:10][%cal Ba1a3,Ba3c3,Bc3c4][%mdl 32]} c4 {[%emt 0:01:25]} 18. Nd4 $1 {[%emt 0:00:03][%mdl 4] outshines the older 18.axb5.} Qf6 {[%emt 0:16:25]} 19. N2f3 {[%emt 0:00:09] C92: Closed Ruy Lopez: 9...Be6, Karpov and Flohr-Zaitsev Variations.} Nc5 {[%emt 0:09:01]} 20. Ree3 {[%emt 0:16:38]} bxa4 {[%emt 0:17:43]} (20... Nbd3 $11) 21. Rac3 $14 {[%emt 0:18:14] White is slightly better.} Nbd3 {[%emt 0:09:48]} 22. Rxc4 {[%emt 0:14:46]} Nxc1 {[%emt 0:00:05]} 23. Qxc1 {[%emt 0:00:43]} g6 $146 {[%emt 0:00:40]} (23... Rac8 24. Bc2 g6 25. Nc6 Bxc6 26. dxc6 h5 {½-½ Sokolov,A (2605)-Karpov,A (2750) World Cup Rotterdam 1989}) 24. Qc2 {[%emt 0:05:32]} h5 {[%emt 0:06:49]} (24... Rac8 $14) 25. b4 $16 {[%emt 0:06:09]} axb3 {[%emt 0:02:28]} 26. Nxb3 {[%emt 0:00:33]} Nxb3 {[%emt 0:07:45]} 27. Rxb3 {[%emt 0:00:12] White has strong rooks and is better} Bc8 {[%emt 0:00:28]} (27... Ra7 $16) 28. Rc7 $1 $18 {[%emt 0:04:21]} a5 {[%emt 0:07:46] Black is weak on the light squares} 29. Qc6 {[%emt 0:02:57][%csl LRa8,LRe8]} Qd8 {[%emt 0:02:45][%cal Oa5a4]} 30. e5 $1 {[%emt 0:06:03]} (30. Rxf7 Ra6 31. Rxf8+ (31. Qc7 Be7 $11) 31... Rxf8 $11) 30... Ra6 {[%emt 0:00:58]} 31. Qc1 {[%emt 0:03:03]} dxe5 {[%emt 0:01:29]} 32. Rb8 {[%emt 0:00:46]} Bh6 {[%emt 0:02:21]} 33. Qc4 {[%emt 0:02:38]} ({Weaker is} 33. Qxh6 Qxc7 34. Ng5 e4 (34... Qxb8 35. Qh7+ Kf8 36. Qxf7#) (34... Qc1+ 35. Kh2 $11) 35. Qh7+ Kf8 $11) (33. Rcxc8 Bxc1 34. Rxd8 Rxd8 35. Rxd8+ Kg7 36. Nxe5 (36. Bd3 Ra7 $18) 36... Rb6) 33... Qf6 {[%emt 0:00:39]} (33... Qd6 $142 34. Rcxc8 (34. Rbxc8 Rxc8 35. Rxc8+ Bf8 $18) 34... Qxb8 35. Rxb8 Rxb8) 34. Rcxc8 {[%emt 0:02:00]} Rf8 {[%emt 0:00:14]} 35. Rxf8+ {[%emt 0:05:15]} Bxf8 {[%emt 0:00:02]} 36. Qc8 {[%emt 0:01:05]} Qd6 {[%emt 0:00:53] [#]} 37. Nxe5 $1 {[%emt 0:00:40][%mdl 512]} Ra7 {[%emt 0:00:57]} (37... Rb6 38. Qxf8+) 38. Nc6 {[%emt 0:01:16]} Rd7 {[%emt 0:00:51]} 39. Nxa5 {[%emt 0:00:55]} (39. g3 $142 a4 40. Qe8) 39... Rc7 {[%emt 0:00:31] [#]} 40. Qxf8+ {[%emt 0:00:32]} Qxf8 {[%emt 0:00:01]} 41. Rxf8+ {[%emt 0:00:01]} Kxf8 {[%emt 0:00:01]} 42. Nc6 {[%emt 0:00:57]} Rb7 {[%emt 0:00:21]} 43. Be4 {[%emt 0:00:12]} f5 {[%emt 0:00:54]} 44. Bf3 {[%emt 0:00:27]} Rb1+ {[%emt 0:00:31]} 45. Kh2 {[%emt 0:00:02]} Rb2 {[%emt 0:00:30]} 46. Ne5 {[%emt 0:01:17]} Kg7 {[%emt 0:00:22]} 47. Kg3 {[%emt 0:02:19]} Rd2 {[%emt 0:00:47]} 48. h4 {[%emt 0:00:28]} Kf6 {[%emt 0:00:33]} 49. Nc6 {[%emt 0:00:43]} g5 $2 {[%emt 0:00:37]} (49... Rb2 50. Nd8 (50. d6 Rd2 $16) 50... Ke5) 50. hxg5+ $1 {[%emt 0:00:27]} Kxg5 {[%emt 0:00:01]} 51. Nd8 {[%emt 0:00:43]} h4+ {[%emt 0:00:35]} 52. Kh3 {[%emt 0:00:40][%cal Od5d6]} Rxf2 {[%emt 0:00:24]} 53. Ne6+ {[%emt 0:00:03]} (53. Nb7 $142 Rf1 54. Kh2) 53... Kf6 {[%emt 0:00:20]} 54. Kxh4 {[%emt 0:00:18]} Rd2 {[%emt 0:01:00]} 55. Nf4 {[%emt 0:00:23]} Rd4 {[%emt 0:00:27]} 56. Kg3 {[%emt 0:00:03]} Ke5 {[%emt 0:00:32]} 57. Ng6+ {[%emt 0:00:39]} Kf6 {[%emt 0:00:15]} 58. Nf4 {[%emt 0:00:12]} Ke5 {[%emt 0:00:05]} 59. Ne2 {[%emt 0:00:05]} Rc4 {[%emt 0:00:33]} 60. Kf2 {[%emt 0:00:27]} f4 $2 {[%emt 0:00:34]} (60... Rb4 61. Nc3 Rb3) 61. Kg1 $2 {[%emt 0:00:29]} (61. Ke1 $1 $18 {is the precise move to win.} Rc2 62. Kd1) 61... Rc7 $16 {[%emt 0:00:22]} 62. Kf2 $2 {[%emt 0:00:12][%mdl 8192]} (62. Bh5 $16) 62... Rc4 $18 {[%emt 0:00:05]} 63. Ke1 $1 {[%emt 0:00:14]} Rc2 {[%emt 0:01:32] [#]} 64. Kd1 $1 {[%emt 0:00:44]} Rb2 {[%emt 0:00:40] [#]} 65. Kc1 $1 {[%emt 0:00:28]} Ra2 {[%emt 0:00:52]} 66. Nc3 {[%emt 0:00:14]} Ra5 {[%emt 0:00:38]} 67. Kd2 {[%emt 0:00:13]} Ra3 {[%emt 0:00:47]} 68. Kd3 {[%emt 0:02:09]} Ra8 {[%emt 0:00:24] [#]} 69. d6 $1 {[%emt 0:13:31]} Rb8 {[%emt 0:01:12]} (69... Rf8 70. d7) 70. d7 {[%emt 0:00:00]} Kf5 {[%emt 0:00:30]} 71. Kd4 {[%emt 0:00:00] White wants to mate with Kd5.} Rd8 {[%emt 0:00:00]} 72. Bc6 {[%emt 0:00:00]} Ke6 {[%emt 0:00:00]} 73. Kc5 {[%emt 0:00:00] Ne2 would now be deadly.} Ke7 {[%emt 0:00:00]} 74. Nd5+ {[%emt 0:00:00]} Kf7 {[%emt 0:00:22]} 75. Kd6 {[%emt 0:00:00]} Rh8 {[%emt 0:00:28]} 76. Kc7 {[%emt 0:00:00] Weighted Error Value: White=0.57/Black=0.62  Loses game:     	---       	Black=1      Missed win:     	White=1     	---        Mistake:       	---       	Black=5      Inaccurate:     	---       	Black=1      OK:         	White=8     	Black=9      Best:        	White=6     	Black=5      Strong:       	White=4     	---} 1-0

[Event "8th Montevideo Open 2025"]
[Site "Montevideo"]
[Date "2025.02.05"]
[Round "6.11"]
[White "Bauza, Alejandro"]
[Black "Komarov, Leonid"]
[Result "1/2-1/2"]
[Annotator "NA RC"]
[ECO "A11"]
[WhiteElo "2116"]
[BlackElo "1956"]
[PlyCount "41"]
[EventDate "2025.02.01"]
[EventType "swiss"]
[EventCountry "URU"]
[SourceTitle "playchess.com"]
[Source "ChessBase"]
[SourceQuality "1"]
[TimeControl "5400+30"]

1. Nf3 {[%emt 0:02:35]} Nf6 {[%emt 0:00:06]} 2. g3 {[%emt 0:00:06]} d5 {[%emt 0:00:09]} 3. Bg2 {[%emt 0:00:09]} Bf5 {[%emt 0:00:26]} 4. c4 {[%emt 0:00:08]} c6 {[%emt 0:00:04]} 5. cxd5 {[%emt 0:00:07]} cxd5 {[%emt 0:00:07]} 6. Qb3 {[%emt 0:00:05]} Qb6 {[%emt 0:00:27]} 7. Qxb6 {[%emt 0:00:17]} axb6 {[%emt 0:00:02]} 8. Nc3 {[%emt 0:00:25]} e6 {[%emt 0:00:17]} 9. d3 {[%emt 0:00:18]} Bc5 {[%emt 0:01:17]} 10. Nb5 {[%emt 0:01:37]} O-O {[%emt 0:00:34]} 11. O-O {[%emt 0:01:18]} Nc6 {[%emt 0:00:21]} 12. Bf4 {[%emt 0:00:22]} h6 {[%emt 0:01:17]} 13. Nd6 {[%emt 0:02:12]} Bg4 {[%emt 0:11:18]} 14. Nxb7 {[%emt 0:09:02]} Nd4 {[%emt 0:01:30]} 15. Nxd4 {[%emt 0:08:52]} Bxd4 {[%emt 0:00:20]} 16. e3 {[%emt 0:00:15]} Bxb2 {[%emt 0:00:43]} 17. Rab1 {[%emt 0:00:05]} Rxa2 {[%emt 0:00:16]} 18. f3 {[%emt 0:00:29]} Bf5 {[%emt 0:06:40]} 19. Rf2 {[%emt 0:00:23]} Ra7 {[%emt 0:00:20]} 20. Rfxb2 {[%emt 0:01:31]} Rxb7 {[%emt 0:00:07]} 21. e4 {[%emt 0:00:10]} 1/2-1/2

[Event "8th Montevideo Open 2025"]
[Site "Montevideo"]
[Date "2025.02.06"]
[Round "6.12"]
[White "Melani, Mauro"]
[Black "Carvalho, Guillermo"]
[Result "1/2-1/2"]
[Annotator "NA RC"]
[ECO "B05"]
[WhiteElo "1914"]
[BlackElo "2094"]
[PlyCount "127"]
[EventDate "2025.02.01"]
[EventType "swiss"]
[EventCountry "URU"]
[SourceTitle "playchess.com"]
[Source "ChessBase"]
[SourceQuality "1"]
[TimeControl "5400+30"]

1. e4 {[%emt 0:00:05]} Nf6 {[%emt 0:00:12]} 2. e5 {[%emt 0:00:21]} Nd5 {[%emt 0:00:06]} 3. d4 {[%emt 0:00:38]} d6 {[%emt 0:00:30]} 4. c4 {[%emt 0:00:30]} Nb6 {[%emt 0:00:00]} 5. exd6 exd6 6. Nc3 {[%emt 1:31:56]} Nc6 {[%emt 1:32:42]} 7. Be3 {[%emt 0:00:00]} Be7 {[%emt 0:00:00]} 8. Be2 {[%emt 0:00:00]} O-O 9. Nf3 {[%emt 0:00:00]} Bg4 {[%emt 0:00:00]} 10. b3 Bf6 {[%emt 0:00:00]} 11. O-O Re8 {[%emt 0:00:00]} 12. Qd2 {[%emt 0:00:00]} Ne7 {[%emt 0:00:00]} 13. Ne4 {[%emt 0:00:00]} Ng6 {[%emt 0:00:00]} 14. Nxf6+ {[%emt 0:00:00]} Qxf6 {[%emt 0:00:00]} 15. h3 {[%emt 0:00:00]} Bf5 {[%emt 0:00:00]} 16. Bg5 {[%emt 0:00:00]} Qe6 {[%emt 0:00:00]} 17. Rfe1 {[%emt 0:00:00]} Qd7 {[%emt 0:00:00]} 18. Qa5 {[%emt 0:00:00]} h6 {[%emt 0:00:00]} 19. Bd2 {[%emt 0:00:00]} a6 {[%emt 0:00:00]} 20. Rad1 {[%emt 0:00:00]} Rad8 {[%emt 0:00:00]} 21. Be3 {[%emt 0:00:00]} Qc8 {[%emt 0:00:00]} 22. d5 {[%emt 0:00:00]} Nd7 {[%emt 0:00:00]} 23. Nd4 {[%emt 0:00:00]} Be4 {[%emt 0:00:00]} 24. Bc1 {[%emt 0:00:00]} Ngf8 {[%emt 0:00:00]} 25. Bg4 {[%emt 0:00:00]} Bg6 {[%emt 0:00:00]} 26. Qc3 {[%emt 0:00:00]} Rxe1+ {[%emt 0:00:00]} 27. Rxe1 {[%emt 0:00:00]} Re8 {[%emt 0:00:00]} 28. Re3 {[%emt 0:00:00]} Rxe3 {[%emt 0:00:00]} 29. Qxe3 {[%emt 0:00:00]} Qd8 {[%emt 0:00:00]} 30. f4 {[%emt 0:00:00]} Nf6 {[%emt 0:00:00]} 31. Bf3 {[%emt 0:00:00]} Bb1 {[%emt 0:00:00]} 32. a3 {[%emt 0:00:00]} Ng6 {[%emt 0:00:00]} 33. g3 {[%emt 0:00:00]} Qe7 {[%emt 0:00:00]} 34. Qxe7 {[%emt 0:00:00]} Nxe7 {[%emt 0:00:00]} 35. Bb2 {[%emt 0:00:00]} Ne4 {[%emt 0:00:00]} 36. g4 {[%emt 0:00:00]} Nc5 {[%emt 0:01:03]} 37. Bc1 {[%emt 0:00:00]} Ba2 {[%emt 0:02:14]} 38. Bd1 {[%emt 0:00:00]} Bb1 {[%emt 0:00:46]} 39. Kg2 {[%emt 0:00:00]} Be4+ {[%emt 0:00:27]} 40. Kg3 {[%emt 0:00:00]} c6 {[%emt 0:02:45]} 41. dxc6 {[%emt 0:17:30]} bxc6 {[%emt 0:00:44]} 42. Bd2 {[%emt 0:00:00]} Bb1 {[%emt 0:01:50]} 43. Kf3 {[%emt 0:00:00]} Ne4 {[%emt 0:01:53]} 44. Be1 {[%emt 0:00:00]} c5 {[%emt 0:01:13]} 45. Ne2 {[%emt 0:00:00]} d5 {[%emt 0:00:59]} 46. Nc3 {[%emt 0:00:00]} Nxc3 {[%emt 0:00:35]} 47. Bxc3 {[%emt 0:00:00]} dxc4 {[%emt 0:00:32]} 48. bxc4 {[%emt 0:00:00]} Nc8 {[%emt 0:02:15]} 49. Ke3 {[%emt 0:00:00]} Ba2 {[%emt 0:01:10]} 50. Be5 {[%emt 0:00:00]} Nb6 {[%emt 0:00:38]} 51. Be2 {[%emt 0:00:00]} Nxc4+ {[%emt 0:00:57]} 52. Ke4 {[%emt 0:00:00]} Nxa3 {[%emt 0:01:43]} 53. Bxa6 {[%emt 0:00:00]} Nc4 {[%emt 0:00:36]} 54. Bc7 {[%emt 0:00:00]} Nd2+ {[%emt 0:00:26]} 55. Kd3 {[%emt 0:00:00]} Nf3 {[%emt 0:00:30]} 56. Kc3 {[%emt 0:00:00]} Nd4 {[%emt 0:00:29]} 57. Bd6 {[%emt 0:00:00]} Ne6 {[%emt 0:00:09]} 58. h4 {[%emt 0:00:00]} Bd5 {[%emt 0:00:36]} 59. f5 {[%emt 0:09:00]} Nf8 {[%emt 0:00:34]} 60. Bxc5 {[%emt 0:00:30]} Bf3 {[%emt 0:01:56]} 61. g5 {[%emt 0:00:00]} hxg5 {[%emt 0:00:00]} 62. hxg5 {[%emt 0:00:00]} Bg4 {[%emt 0:00:00]} 63. Bc8 {[%emt 0:00:00]} g6 {[%emt 0:00:11]} 64. Bxf8 {[%emt 0:00:00]} 1/2-1/2